[Event "Titled Tuesday Blitz March 08 Late 2022"]
[White "McNeill, Gordon"]
[Black "Espinosa, Pedro"]
[WhiteFideId "30920760"]
[BlackFideId "30921066"]
[WhiteElo "2252"]
[BlackElo "1696"]
[Result "1-0"]
[Round "04"]
[TimeControl "180+1"]
[Date "2022.03.09"]
[WhiteClock "0:00:16"]
[BlackClock "0:00:10"]

1. e4 {[%clk 0:03:00]}  c5 {[%clk 0:02:59]} 2. Nf3 {[%clk 0:03:00]}  d6 {[%clk 0:02:59]} 3. d4 {[%clk 0:02:59]}  cxd4 {[%clk 0:03:00]} 4. Nxd4 {[%clk 0:02:59]}  Nf6 {[%clk 0:03:00]} 5. Nc3 {[%clk 0:03:00]}  Nc6 {[%clk 0:03:01]} 6. g3 {[%clk 0:02:35]}  g6 {[%clk 0:02:57]} 7. Bg2 {[%clk 0:02:32]}  Bg7 {[%clk 0:02:57]} 8. Be3 {[%clk 0:02:29]}  O-O {[%clk 0:02:55]} 9. h3 {[%clk 0:02:28]}  Nxd4 {[%clk 0:02:48]} 10. Bxd4 {[%clk 0:02:27]}  e5 {[%clk 0:02:48]} 11. Be3 {[%clk 0:02:24]}  a6 {[%clk 0:02:44]} 12. a4 {[%clk 0:02:14]}  Qc7 {[%clk 0:02:42]} 13. a5 {[%clk 0:02:05]}  Be6 {[%clk 0:02:38]} 14. O-O {[%clk 0:02:01]}  Rfd8 {[%clk 0:02:33]} 15. Bb6 {[%clk 0:01:51]}  Qc6 {[%clk 0:02:30]} 16. Bxd8 {[%clk 0:01:52]}  Rxd8 {[%clk 0:02:30]} 17. Nd5 {[%clk 0:01:50]}  Qd7 {[%clk 0:02:21]} 18. c4 {[%clk 0:01:38]}  Nxd5 {[%clk 0:02:18]} 19. cxd5 {[%clk 0:01:34]}  Bxh3 {[%clk 0:02:18]} 20. Bxh3 {[%clk 0:01:25]}  Qxh3 {[%clk 0:02:19]} 21. Rc1 {[%clk 0:01:24]}  Qd7 {[%clk 0:02:12]} 22. Qb3 {[%clk 0:01:21]}  f5 {[%clk 0:02:06]} 23. exf5 {[%clk 0:01:13]}  gxf5 {[%clk 0:02:06]} 24. Qb6 {[%clk 0:01:10]}  f4 {[%clk 0:01:52]} 25. Rc7 {[%clk 0:01:09]}  Qe8 {[%clk 0:01:21]} 26. f3 {[%clk 0:00:22]}  fxg3 {[%clk 0:01:16]} 27. Kg2 {[%clk 0:00:22]}  Bf6 {[%clk 0:00:51]} 28. Qb3 {[%clk 0:00:16]}  Qg6 {[%clk 0:00:38]} 29. Qc2 {[%clk 0:00:15]}  Qxc2+ {[%clk 0:00:13]} 30. Rxc2 {[%clk 0:00:16]}  Rd7 {[%clk 0:00:14]} 31. Kxg3 {[%clk 0:00:16]}  Bd8 {[%clk 0:00:13]} 32. b4 {[%clk 0:00:15]}  Kf7 {[%clk 0:00:13]} 33. Kg4 {[%clk 0:00:15]}  Ke8 {[%clk 0:00:12]} 34. Rh1 {[%clk 0:00:15]}  Rg7+ {[%clk 0:00:12]} 35. Kf5 {[%clk 0:00:15]}  Kd7 {[%clk 0:00:12]} 36. Rhh2 {[%clk 0:00:13]}  Rf7+ {[%clk 0:00:13]} 37. Ke4 {[%clk 0:00:12]}  Rf4+ {[%clk 0:00:13]} 38. Ke3 {[%clk 0:00:12]}  Rf7 {[%clk 0:00:10]} 39. Rh5 {[%clk 0:00:12]}  h6 {[%clk 0:00:10]} 40. Rg2 {[%clk 0:00:07]}  Bg5+ {[%clk 0:00:10]} 41. Ke2 {[%clk 0:00:07]}  Rf4 {[%clk 0:00:10]} 42. Rg4 {[%clk 0:00:08]}  Rf7 {[%clk 0:00:09]} 43. Rh1 {[%clk 0:00:08]}  Rf8 {[%clk 0:00:07]} 44. Rd1 {[%clk 0:00:09]}  Rc8 {[%clk 0:00:07]} 45. Rb1 {[%clk 0:00:08]}  Rc2+ {[%clk 0:00:07]} 46. Kf1 {[%clk 0:00:08]}  Rd2 {[%clk 0:00:07]} 47. b5 {[%clk 0:00:08]}  axb5 {[%clk 0:00:07]} 48. Rxb5 {[%clk 0:00:07]}  Kc7 {[%clk 0:00:07]} 49. Rc4+ {[%clk 0:00:07]}  Kd8 {[%clk 0:00:04]} 50. Rxb7 {[%clk 0:00:07]}  Ra2 {[%clk 0:00:03]} 51. Rh7 {[%clk 0:00:06]}  Rxa5 {[%clk 0:00:03]} 52. Rb4 {[%clk 0:00:07]}  Ra8 {[%clk 0:00:02]} 53. Rbb7 {[%clk 0:00:07]}  Ra1+ {[%clk 0:00:02]} 54. Kg2 {[%clk 0:00:07]}  Kc8 {[%clk 0:00:02]} 55. Rbg7 {[%clk 0:00:06]}  Bd8 {[%clk 0:00:01]} 56. Rh8 {[%clk 0:00:07]}  Ra5 {[%clk 0:00:02]} 57. Rgg8 {[%clk 0:00:07]}  Rxd5 {[%clk 0:00:03]} 58. Rxd8+ {[%clk 0:00:08]}  Kc7 {[%clk 0:00:03]} 59. Rdg8 {[%clk 0:00:08]}  Kc6 {[%clk 0:00:04]} 60. Rxh6 {[%clk 0:00:09]}  Rb5 {[%clk 0:00:04]} 61. Rgg6 {[%clk 0:00:10]}  Rd5 {[%clk 0:00:04]} 62. Kg3 {[%clk 0:00:10]}  Kc5 {[%clk 0:00:05]} 63. f4 {[%clk 0:00:11]}  Rd3+ {[%clk 0:00:05]} 64. Kg4 {[%clk 0:00:11]}  Rd4 {[%clk 0:00:05]} 65. Rf6 {[%clk 0:00:11]}  exf4 {[%clk 0:00:06]} 66. Rxf4 {[%clk 0:00:11]}  Rd1 {[%clk 0:00:06]} 67. Rh5+ {[%clk 0:00:11]}  d5 {[%clk 0:00:07]} 68. Kf5 {[%clk 0:00:12]}  d4 {[%clk 0:00:05]} 69. Ke6+ {[%clk 0:00:12]}  Kc4 {[%clk 0:00:06]} 70. Kd6 {[%clk 0:00:12]}  Kc3 {[%clk 0:00:05]} 71. Kc5 {[%clk 0:00:12]}  d3 {[%clk 0:00:06]} 72. Rh3 {[%clk 0:00:12]}  Kc2 {[%clk 0:00:06]} 73. Rc4+ {[%clk 0:00:13]}  Kd2 {[%clk 0:00:06]} 74. Kd4 {[%clk 0:00:13]}  Ke2 {[%clk 0:00:05]} 75. Re3+ {[%clk 0:00:13]}  Kf2 {[%clk 0:00:06]} 76. Rxd3 {[%clk 0:00:14]}  Re1 {[%clk 0:00:06]} 77. Rc2+ {[%clk 0:00:15]}  Kf1 {[%clk 0:00:07]} 78. Rdd2 {[%clk 0:00:15]}  Re7 {[%clk 0:00:06]} 79. Rh2 {[%clk 0:00:15]}  Kg1 {[%clk 0:00:07]} 80. Rhd2 {[%clk 0:00:14]}  Kf1 {[%clk 0:00:06]} 81. Rc1+ {[%clk 0:00:14]}  Re1 {[%clk 0:00:07]} 82. Rxe1+ {[%clk 0:00:14]}  Kxe1 {[%clk 0:00:08]} 83. Ke3 {[%clk 0:00:15]}  Kf1 {[%clk 0:00:08]} 84. Ra2 {[%clk 0:00:14]}  Kg1 {[%clk 0:00:08]} 85. Kf3 {[%clk 0:00:15]}  Kh1 {[%clk 0:00:09]} 86. Kg3 {[%clk 0:00:15]}  Kg1 {[%clk 0:00:10]} 87. Ra1# {[%clk 0:00:16]} 1-0


[Site "https://www.chess.com"]

[Event "Titled Tuesday Blitz March 08 Late 2022"]
[White "Mekhitarian, Krikor Sevag"]
[Black "Hnydiuk, Aleksander"]
[WhiteFideId "2107660"]
[BlackFideId "1109057"]
[WhiteElo "2598"]
[BlackElo "2374"]
[Result "0-1"]
[Round "04"]
[TimeControl "180+1"]
[Date "2022.03.08"]
[WhiteClock "0:00:03"]
[BlackClock "0:00:24"]

1. e4 {[%clk 0:03:00]}  Nf6 {[%clk 0:03:00]} 2. e5 {[%clk 0:03:00]}  Nd5 {[%clk 0:03:00]} 3. d4 {[%clk 0:03:00]}  d6 {[%clk 0:03:00]} 4. Nf3 {[%clk 0:02:59]}  dxe5 {[%clk 0:03:00]} 5. Nxe5 {[%clk 0:02:59]}  c6 {[%clk 0:03:01]} 6. Bd3 {[%clk 0:02:53]}  Nd7 {[%clk 0:03:00]} 7. Nf3 {[%clk 0:02:53]}  N7f6 {[%clk 0:03:00]} 8. h3 {[%clk 0:02:53]}  Nb4 {[%clk 0:02:58]} 9. Bc4 {[%clk 0:02:53]}  Bf5 {[%clk 0:02:55]} 10. Bb3 {[%clk 0:02:45]}  e6 {[%clk 0:02:53]} 11. O-O {[%clk 0:02:44]}  Be7 {[%clk 0:02:52]} 12. Ne5 {[%clk 0:02:41]}  O-O {[%clk 0:02:48]} 13. c3 {[%clk 0:02:41]}  Nbd5 {[%clk 0:02:43]} 14. g4 {[%clk 0:02:41]}  Bxb1 {[%clk 0:02:36]} 15. Rxb1 {[%clk 0:02:41]}  c5 {[%clk 0:02:31]} 16. dxc5 {[%clk 0:02:26]}  Bxc5 {[%clk 0:02:29]} 17. Qe2 {[%clk 0:02:25]}  Qc7 {[%clk 0:02:21]} 18. Kg2 {[%clk 0:02:15]}  Rad8 {[%clk 0:02:14]} 19. Bd2 {[%clk 0:02:14]}  Bd6 {[%clk 0:02:01]} 20. Rbe1 {[%clk 0:01:56]}  Rfe8 {[%clk 0:02:00]} 21. f4 {[%clk 0:01:51]}  a6 {[%clk 0:01:43]} 22. h4 {[%clk 0:01:22]}  Nd7 {[%clk 0:01:42]} 23. Nd3 {[%clk 0:00:50]}  N7b6 {[%clk 0:01:16]} 24. g5 {[%clk 0:00:45]}  Ne7 {[%clk 0:01:10]} 25. Ne5 {[%clk 0:00:36]}  Nf5 {[%clk 0:01:08]} 26. Kh3 {[%clk 0:00:37]}  Bxe5 {[%clk 0:00:53]} 27. fxe5 {[%clk 0:00:36]}  g6 {[%clk 0:00:49]} 28. Bc1 {[%clk 0:00:32]}  Rd7 {[%clk 0:00:46]} 29. Bc2 {[%clk 0:00:32]}  Nd5 {[%clk 0:00:40]} 30. Rd1 {[%clk 0:00:29]}  b5 {[%clk 0:00:40]} 31. a3 {[%clk 0:00:28]}  Qc6 {[%clk 0:00:37]} 32. Rd3 {[%clk 0:00:24]}  Red8 {[%clk 0:00:37]} 33. Rdf3 {[%clk 0:00:24]}  Qc4 {[%clk 0:00:35]} 34. Qxc4 {[%clk 0:00:22]}  bxc4 {[%clk 0:00:36]} 35. Re1 {[%clk 0:00:21]}  Nb6 {[%clk 0:00:35]} 36. Re4 {[%clk 0:00:20]}  Rd5 {[%clk 0:00:34]} 37. h5 {[%clk 0:00:19]}  Kg7 {[%clk 0:00:34]} 38. h6+ {[%clk 0:00:20]}  Kg8 {[%clk 0:00:34]} 39. Re2 {[%clk 0:00:16]}  Kf8 {[%clk 0:00:34]} 40. Rf4 {[%clk 0:00:17]}  Ke8 {[%clk 0:00:33]} 41. Kg2 {[%clk 0:00:17]}  a5 {[%clk 0:00:32]} 42. Kf2 {[%clk 0:00:17]}  Rb5 {[%clk 0:00:31]} 43. Ke1 {[%clk 0:00:13]}  Rdd5 {[%clk 0:00:30]} 44. Bxf5 {[%clk 0:00:05]}  gxf5 {[%clk 0:00:28]} 45. Be3 {[%clk 0:00:03]}  Na4 {[%clk 0:00:26]} 46. Bd4 {[%clk 0:00:02]}  Nxb2 {[%clk 0:00:24]} 47. Rg2 {[%clk 0:00:03]}  Nd3+ {[%clk 0:00:24]} 0-1


[Site "https://www.chess.com"]

[Event "Titled Tuesday Blitz March 08 Late 2022"]
[White "Milanovic, Marko"]
[Black "Kozina, Anastasia"]
[WhiteFideId "980129"]
[BlackFideId "24174017"]
[WhiteElo "2159"]
[BlackElo "1993"]
[Result "1-0"]
[Round "04"]
[TimeControl "180+1"]
[Date "2022.03.09"]
[WhiteClock "0:00:08"]
[BlackClock "0:00:07"]

1. d4 {[%clk 0:02:55]}  e6 {[%clk 0:03:00]} 2. e4 {[%clk 0:02:55]}  d5 {[%clk 0:02:59]} 3. Nc3 {[%clk 0:02:55]}  Nf6 {[%clk 0:02:59]} 4. e5 {[%clk 0:02:55]}  Nfd7 {[%clk 0:02:58]} 5. f4 {[%clk 0:02:55]}  c5 {[%clk 0:02:58]} 6. Nf3 {[%clk 0:02:56]}  Nc6 {[%clk 0:02:58]} 7. Be3 {[%clk 0:02:57]}  a6 {[%clk 0:02:59]} 8. Qd2 {[%clk 0:02:55]}  b5 {[%clk 0:02:59]} 9. Be2 {[%clk 0:02:50]}  Qb6 {[%clk 0:02:57]} 10. O-O {[%clk 0:02:49]}  Bb7 {[%clk 0:02:56]} 11. Nd1 {[%clk 0:02:49]}  O-O-O {[%clk 0:02:43]} 12. c3 {[%clk 0:02:48]}  f6 {[%clk 0:02:40]} 13. a4 {[%clk 0:02:44]}  b4 {[%clk 0:02:33]} 14. Nf2 {[%clk 0:02:35]}  c4 {[%clk 0:02:28]} 15. Nh4 {[%clk 0:02:18]}  b3 {[%clk 0:02:20]} 16. f5 {[%clk 0:02:12]}  exf5 {[%clk 0:02:06]} 17. e6 {[%clk 0:02:06]}  Ndb8 {[%clk 0:02:04]} 18. Nxf5 {[%clk 0:02:06]}  Ne7 {[%clk 0:01:50]} 19. Bg4 {[%clk 0:01:38]}  h5 {[%clk 0:01:39]} 20. Nxe7+ {[%clk 0:01:35]}  Bxe7 {[%clk 0:01:39]} 21. Bh3 {[%clk 0:01:36]}  Nc6 {[%clk 0:01:35]} 22. Rae1 {[%clk 0:01:30]}  Kb8 {[%clk 0:01:31]} 23. Bf4+ {[%clk 0:01:30]}  Ka8 {[%clk 0:01:30]} 24. g3 {[%clk 0:01:22]}  Rde8 {[%clk 0:01:23]} 25. Nd1 {[%clk 0:01:21]}  Nd8 {[%clk 0:01:18]} 26. Qe2 {[%clk 0:01:07]}  g5 {[%clk 0:01:14]} 27. Bd2 {[%clk 0:01:05]}  g4 {[%clk 0:01:01]} 28. Bg2 {[%clk 0:01:03]}  Bc6 {[%clk 0:00:52]} 29. Ne3 {[%clk 0:00:54]}  Qb7 {[%clk 0:00:48]} 30. Nf5 {[%clk 0:00:55]}  Bxa4 {[%clk 0:00:36]} 31. Nxe7 {[%clk 0:00:48]}  Rxe7 {[%clk 0:00:37]} 32. Rxf6 {[%clk 0:00:48]}  Rhe8 {[%clk 0:00:27]} 33. Qe5 {[%clk 0:00:36]}  Bc6 {[%clk 0:00:26]} 34. Qxh5 {[%clk 0:00:33]}  Nxe6 {[%clk 0:00:18]} 35. Qxg4 {[%clk 0:00:31]}  Nc7 {[%clk 0:00:17]} 36. Rxe7 {[%clk 0:00:23]}  Rxe7 {[%clk 0:00:18]} 37. h4 {[%clk 0:00:24]}  Ne8 {[%clk 0:00:17]} 38. Rf8 {[%clk 0:00:22]}  Ka7 {[%clk 0:00:17]} 39. h5 {[%clk 0:00:21]}  Rg7 {[%clk 0:00:16]} 40. Qf4 {[%clk 0:00:20]}  Qe7 {[%clk 0:00:15]} 41. Bf3 {[%clk 0:00:18]}  Nc7 {[%clk 0:00:15]} 42. Rf6 {[%clk 0:00:12]}  Ne6 {[%clk 0:00:12]} 43. Qe5 {[%clk 0:00:11]}  Bd7 {[%clk 0:00:11]} 44. Bxd5 {[%clk 0:00:11]}  Rxg3+ {[%clk 0:00:11]} 45. Qxg3 {[%clk 0:00:10]}  Qxf6 {[%clk 0:00:11]} 46. Bxe6 {[%clk 0:00:10]}  Bxe6 {[%clk 0:00:10]} 47. h6 {[%clk 0:00:07]}  Bd5 {[%clk 0:00:08]} 48. Be3 {[%clk 0:00:07]}  Bb7 {[%clk 0:00:08]} 49. d5+ {[%clk 0:00:07]}  Ka8 {[%clk 0:00:08]} 50. Qg8+ {[%clk 0:00:08]}  Bc8 {[%clk 0:00:07]} 51. Qxc8# {[%clk 0:00:08]} 1-0


[Site "https://www.chess.com"]

[Event "Titled Tuesday Blitz March 08 Late 2022"]
[White "Mirzoev, Azer"]
[Black "Fiorito, Fabian"]
[WhiteFideId "13400304"]
[BlackFideId "100200"]
[WhiteElo "2685"]
[BlackElo "2440"]
[Result "1-0"]
[Round "04"]
[TimeControl "180+1"]
[Date "2022.03.09"]
[WhiteClock "0:02:09"]
[BlackClock "0:01:19"]

1. c4 {[%clk 0:03:00]}  Nf6 {[%clk 0:02:59]} 2. Nc3 {[%clk 0:03:00]}  e6 {[%clk 0:02:58]} 3. g3 {[%clk 0:03:00]}  d5 {[%clk 0:02:58]} 4. d4 {[%clk 0:03:00]}  c6 {[%clk 0:02:47]} 5. Nf3 {[%clk 0:02:58]}  dxc4 {[%clk 0:02:45]} 6. Bg2 {[%clk 0:02:58]}  b5 {[%clk 0:02:45]} 7. O-O {[%clk 0:02:56]}  a6 {[%clk 0:02:40]} 8. Ne5 {[%clk 0:02:56]}  Bb7 {[%clk 0:02:40]} 9. a4 {[%clk 0:02:54]}  b4 {[%clk 0:02:17]} 10. Ne4 {[%clk 0:02:46]}  Nbd7 {[%clk 0:02:09]} 11. Nxf6+ {[%clk 0:02:35]}  Qxf6 {[%clk 0:01:57]} 12. Nxc4 {[%clk 0:02:33]}  Be7 {[%clk 0:01:56]} 13. Na5 {[%clk 0:02:28]}  Bc8 {[%clk 0:01:49]} 14. Nxc6 {[%clk 0:02:27]}  Bb7 {[%clk 0:01:47]} 15. Bf4 {[%clk 0:02:24]}  Rc8 {[%clk 0:01:41]} 16. Rc1 {[%clk 0:02:24]}  Nb6 {[%clk 0:01:28]} 17. Be5 {[%clk 0:02:19]}  Qg6 {[%clk 0:01:26]} 18. Nxe7 {[%clk 0:02:13]}  Rxc1 {[%clk 0:01:25]} 19. Qxc1 {[%clk 0:02:12]}  Kxe7 {[%clk 0:01:19]} 20. Qc7+ {[%clk 0:02:09]} 1-0


[Site "https://www.chess.com"]

[Event "Titled Tuesday Blitz March 08 Late 2022"]
[White "Miszler, Levente"]
[Black "Krishnan, Varun"]
[WhiteFideId "763276"]
[BlackFideId "5054508"]
[WhiteElo "2376"]
[BlackElo "2528"]
[Result "1-0"]
[Round "04"]
[TimeControl "180+1"]
[Date "2022.03.09"]
[WhiteClock "0:00:11"]
[BlackClock "0:00:01"]

1. Nf3 {[%clk 0:02:57]}  d5 {[%clk 0:02:59]} 2. c4 {[%clk 0:02:57]}  e6 {[%clk 0:02:59]} 3. g3 {[%clk 0:02:56]}  Nf6 {[%clk 0:02:58]} 4. Bg2 {[%clk 0:02:57]}  Be7 {[%clk 0:02:57]} 5. O-O {[%clk 0:02:57]}  O-O {[%clk 0:02:57]} 6. d4 {[%clk 0:02:58]}  dxc4 {[%clk 0:02:56]} 7. Qc2 {[%clk 0:02:57]}  a6 {[%clk 0:02:56]} 8. a4 {[%clk 0:02:57]}  Bd7 {[%clk 0:02:56]} 9. Ne5 {[%clk 0:02:57]}  Bc6 {[%clk 0:02:51]} 10. Nxc6 {[%clk 0:02:56]}  Nxc6 {[%clk 0:02:51]} 11. e3 {[%clk 0:02:57]}  Na5 {[%clk 0:02:48]} 12. Nd2 {[%clk 0:02:56]}  c5 {[%clk 0:02:42]} 13. dxc5 {[%clk 0:02:56]}  Bxc5 {[%clk 0:02:43]} 14. Nxc4 {[%clk 0:02:53]}  Rc8 {[%clk 0:02:36]} 15. Rd1 {[%clk 0:02:19]}  Qc7 {[%clk 0:02:30]} 16. Nxa5 {[%clk 0:02:15]}  Qxa5 {[%clk 0:02:30]} 17. Qb3 {[%clk 0:02:07]}  b5 {[%clk 0:02:15]} 18. Bd2 {[%clk 0:02:06]}  b4 {[%clk 0:02:11]} 19. Rac1 {[%clk 0:02:06]}  Rfd8 {[%clk 0:02:05]} 20. Rc2 {[%clk 0:01:52]}  Ng4 {[%clk 0:01:46]} 21. Rdc1 {[%clk 0:01:49]}  Qb6 {[%clk 0:01:12]} 22. Bxb4 {[%clk 0:01:38]}  a5 {[%clk 0:00:49]} 23. Rxc5 {[%clk 0:01:33]}  Rxc5 {[%clk 0:00:48]} 24. Rxc5 {[%clk 0:01:32]}  axb4 {[%clk 0:00:48]} 25. Rc4 {[%clk 0:01:26]}  Ne5 {[%clk 0:00:39]} 26. Rxb4 {[%clk 0:01:24]}  Qc7 {[%clk 0:00:34]} 27. h4 {[%clk 0:01:20]}  h5 {[%clk 0:00:33]} 28. Qc3 {[%clk 0:01:14]}  Rd1+ {[%clk 0:00:29]} 29. Bf1 {[%clk 0:01:13]}  Nf3+ {[%clk 0:00:27]} 30. Kg2 {[%clk 0:01:13]}  Ne1+ {[%clk 0:00:24]} 31. Kh1 {[%clk 0:00:47]}  Qd7 {[%clk 0:00:21]} 32. Be2 {[%clk 0:00:30]}  Rd2 {[%clk 0:00:11]} 33. Qc4 {[%clk 0:00:21]}  Rc2 {[%clk 0:00:06]} 34. Qe4 {[%clk 0:00:19]}  Rc8 {[%clk 0:00:03]} 35. Rd4 {[%clk 0:00:13]}  Qc7 {[%clk 0:00:02]} 36. Rd1 {[%clk 0:00:13]}  Nc2 {[%clk 0:00:02]} 37. Rc1 {[%clk 0:00:13]}  Qc5 {[%clk 0:00:01]} 38. Bd3 {[%clk 0:00:12]}  Qa5 {[%clk 0:00:01]} 39. Rxc2 {[%clk 0:00:11]} 1-0


[Site "https://www.chess.com"]

[Event "Titled Tuesday Blitz March 08 Late 2022"]
[White "Morris-Suzuki, Sophie"]
[Black "Sarkar, Justin"]
[WhiteFideId "30922615"]
[BlackFideId "2010011"]
[WhiteElo "2495"]
[BlackElo "2038"]
[Result "1-0"]
[Round "04"]
[TimeControl "180+1"]
[Date "2022.03.09"]
[WhiteClock "0:01:07"]
[BlackClock "0:00:02"]

1. d4 {[%clk 0:02:59]}  Nf6 {[%clk 0:02:56]} 2. c4 {[%clk 0:03:00]}  e6 {[%clk 0:02:55]} 3. Nc3 {[%clk 0:02:59]}  Bb4 {[%clk 0:02:55]} 4. e3 {[%clk 0:02:59]}  O-O {[%clk 0:02:53]} 5. a3 {[%clk 0:02:59]}  Bxc3+ {[%clk 0:02:51]} 6. bxc3 {[%clk 0:03:00]}  c5 {[%clk 0:02:45]} 7. Bd3 {[%clk 0:03:00]}  Nc6 {[%clk 0:02:37]} 8. Ne2 {[%clk 0:02:55]}  b6 {[%clk 0:02:16]} 9. e4 {[%clk 0:02:52]}  Ba6 {[%clk 0:01:56]} 10. Bg5 {[%clk 0:02:42]}  Qc8 {[%clk 0:01:37]} 11. Bxf6 {[%clk 0:02:37]}  gxf6 {[%clk 0:01:37]} 12. O-O {[%clk 0:02:34]}  Na5 {[%clk 0:01:30]} 13. Ng3 {[%clk 0:02:29]}  Kh8 {[%clk 0:00:49]} 14. Qh5 {[%clk 0:02:18]}  Bxc4 {[%clk 0:00:31]} 15. Qh6 {[%clk 0:02:18]}  Qd8 {[%clk 0:00:17]} 16. Nh5 {[%clk 0:01:15]}  Rg8 {[%clk 0:00:17]} 17. Nxf6 {[%clk 0:01:15]}  Rg7 {[%clk 0:00:17]} 18. Rfd1 {[%clk 0:01:15]}  Qc7 {[%clk 0:00:03]} 19. e5 {[%clk 0:01:06]}  Bxd3 {[%clk 0:00:02]} 20. Rxd3 {[%clk 0:01:07]} 1-0


[Site "https://www.chess.com"]

[Event "Titled Tuesday Blitz March 08 Late 2022"]
[White "Moussard, Jules"]
[Black "Munoz, Francisco Javier"]
[WhiteFideId "642908"]
[BlackFideId "128368"]
[WhiteElo "2823"]
[BlackElo "2441"]
[Result "1/2-1/2"]
[Round "04"]
[TimeControl "180+1"]
[Date "2022.03.09"]
[WhiteClock "0:02:09"]
[BlackClock "0:00:10"]

1. f3 {[%clk 0:02:54]}  d5 {[%clk 0:02:59]} 2. Kf2 {[%clk 0:02:55]}  e5 {[%clk 0:02:59]} 3. Ke3 {[%clk 0:02:55]}  Bc5+ {[%clk 0:02:57]} 4. Kd3 {[%clk 0:02:56]}  e4+ {[%clk 0:02:52]} 5. Kc3 {[%clk 0:02:57]}  d4+ {[%clk 0:02:26]} 6. Kb3 {[%clk 0:02:54]}  Be6+ {[%clk 0:01:41]} 7. c4 {[%clk 0:02:47]}  dxc3+ {[%clk 0:01:40]} 8. Kc2 {[%clk 0:02:48]}  cxb2 {[%clk 0:01:35]} 9. Bxb2 {[%clk 0:02:47]}  Nf6 {[%clk 0:01:30]} 10. fxe4 {[%clk 0:02:47]}  Nxe4 {[%clk 0:01:29]} 11. d4 {[%clk 0:02:47]}  Bb6 {[%clk 0:01:13]} 12. Nh3 {[%clk 0:02:41]}  Nc6 {[%clk 0:01:10]} 13. e3 {[%clk 0:02:40]}  Nb4+ {[%clk 0:01:05]} 14. Kc1 {[%clk 0:02:40]}  O-O {[%clk 0:00:58]} 15. a3 {[%clk 0:02:37]}  Nd5 {[%clk 0:00:56]} 16. Qf3 {[%clk 0:02:36]}  f5 {[%clk 0:00:55]} 17. Bd3 {[%clk 0:02:35]}  Ndf6 {[%clk 0:00:51]} 18. Nf4 {[%clk 0:02:35]}  Bf7 {[%clk 0:00:50]} 19. Nc3 {[%clk 0:02:35]}  c5 {[%clk 0:00:48]} 20. d5 {[%clk 0:02:27]}  c4 {[%clk 0:00:45]} 21. Bxe4 {[%clk 0:02:23]}  fxe4 {[%clk 0:00:44]} 22. Qg3 {[%clk 0:02:19]}  Re8 {[%clk 0:00:27]} 23. Rd1 {[%clk 0:02:16]}  g6 {[%clk 0:00:20]} 24. d6 {[%clk 0:02:16]}  Rc8 {[%clk 0:00:13]} 25. Kc2 {[%clk 0:02:16]}  Qd7 {[%clk 0:00:09]} 26. h4 {[%clk 0:02:12]}  Ng4 {[%clk 0:00:09]} 27. Nfd5 {[%clk 0:02:09]}  Bxd5 {[%clk 0:00:09]} 28. Nxd5 {[%clk 0:02:10]}  c3 {[%clk 0:00:09]} 29. Qxg4 {[%clk 0:02:05]}  cxb2+ {[%clk 0:00:08]} 30. Kxb2 {[%clk 0:02:06]}  Qb5+ {[%clk 0:00:08]} 31. Nb4 {[%clk 0:02:06]}  Rc4 {[%clk 0:00:06]} 32. d7 {[%clk 0:02:02]}  Rxb4+ {[%clk 0:00:06]} 33. axb4 {[%clk 0:02:03]}  Qxb4+ {[%clk 0:00:07]} 34. Kc2 {[%clk 0:02:02]}  Qc4+ {[%clk 0:00:08]} 35. Kd2 {[%clk 0:02:02]}  Qd3+ {[%clk 0:00:08]} 36. Ke1 {[%clk 0:01:59]}  Qxe3+ {[%clk 0:00:08]} 37. Qe2 {[%clk 0:02:00]}  Qg3+ {[%clk 0:00:09]} 38. Kd2 {[%clk 0:02:01]}  Rd8 {[%clk 0:00:07]} 39. Qc4+ {[%clk 0:01:59]}  Kg7 {[%clk 0:00:07]} 40. Qc3+ {[%clk 0:02:00]}  Qxc3+ {[%clk 0:00:06]} 41. Kxc3 {[%clk 0:02:01]}  Kf6 {[%clk 0:00:06]} 42. Ra4 {[%clk 0:02:00]}  e3 {[%clk 0:00:06]} 43. Re4 {[%clk 0:02:01]}  Kf5 {[%clk 0:00:06]} 44. Re8 {[%clk 0:02:01]}  Kf4 {[%clk 0:00:06]} 45. Kd3 {[%clk 0:02:01]}  Rxd7+ {[%clk 0:00:05]} 46. Ke2 {[%clk 0:02:02]}  Rxd1 {[%clk 0:00:05]} 47. Kxd1 {[%clk 0:02:03]}  Kg3 {[%clk 0:00:05]} 48. Rh8 {[%clk 0:02:02]}  Kxh4 {[%clk 0:00:05]} 49. Rxh7+ {[%clk 0:02:03]}  Kg3 {[%clk 0:00:06]} 50. Rg7 {[%clk 0:02:04]}  Kxg2 {[%clk 0:00:06]} 51. Rxg6+ {[%clk 0:02:04]}  Kf3 {[%clk 0:00:07]} 52. Rf6+ {[%clk 0:02:05]}  Ke4 {[%clk 0:00:07]} 53. Ke2 {[%clk 0:02:06]}  Kd5 {[%clk 0:00:07]} 54. Rf7 {[%clk 0:02:06]}  Kc6 {[%clk 0:00:08]} 55. Rf6+ {[%clk 0:02:07]}  Kb5 {[%clk 0:00:08]} 56. Kd3 {[%clk 0:02:08]}  a5 {[%clk 0:00:08]} 57. Rf5+ {[%clk 0:02:09]}  Ka6 {[%clk 0:00:09]} 58. Kc4 {[%clk 0:02:09]}  Ba7 {[%clk 0:00:07]} 59. Re5 {[%clk 0:02:08]}  b6 {[%clk 0:00:07]} 60. Re6 {[%clk 0:02:08]}  Kb7 {[%clk 0:00:06]} 61. Kb5 {[%clk 0:02:09]}  Bb8 {[%clk 0:00:06]} 62. Re7+ {[%clk 0:02:09]}  Kc8 {[%clk 0:00:06]} 63. Kc6 {[%clk 0:02:09]}  Kd8 {[%clk 0:00:06]} 64. Rxe3 {[%clk 0:02:08]}  Bh2 {[%clk 0:00:07]} 65. Rh3 {[%clk 0:02:08]}  Bg1 {[%clk 0:00:07]} 66. Rg3 {[%clk 0:02:08]}  Bc5 {[%clk 0:00:08]} 67. Rg7 {[%clk 0:02:07]}  Ke8 {[%clk 0:00:08]} 68. Ra7 {[%clk 0:02:07]}  Kf8 {[%clk 0:00:09]} 69. Kd5 {[%clk 0:02:08]}  Ke8 {[%clk 0:00:09]} 70. Ke6 {[%clk 0:02:08]}  Kd8 {[%clk 0:00:09]} 71. Kd5 {[%clk 0:02:09]}  Ke8 {[%clk 0:00:09]} 72. Ke5 {[%clk 0:02:09]}  Kd8 {[%clk 0:00:09]} 73. Kd5 {[%clk 0:02:09]}  Ke8 {[%clk 0:00:10]} 1/2-1/2


[Site "https://www.chess.com"]